[Event "Chessable Masters - Torneo preliminare"]
[White "Mitrabha, Guha"]
[Black "Sankalp, Gupta"]
[WhiteFideId "5057000"]
[BlackFideId "5097010"]
[WhiteElo "2401"]
[BlackElo "2427"]
[Result "1-0"]
[Round "8"]
[TimeControl "600+2"]
[Date "2023.03.13"]
[WhiteClock "0:07:08"]
[BlackClock "0:03:11"]

1. c4 {[%clk 0:09:32]}  e5 {[%clk 0:09:37]} 2. g3 {[%clk 0:09:29]}  c6 {[%clk 0:09:36]} 3. d4 {[%clk 0:09:28]}  e4 {[%clk 0:09:37]} 4. d5 {[%clk 0:09:28]}  cxd5 {[%clk 0:09:27]} 5. cxd5 {[%clk 0:09:27]}  Bb4+ {[%clk 0:09:28]} 6. Bd2 {[%clk 0:09:28]}  Bc5 {[%clk 0:09:18]} 7. e3 {[%clk 0:09:15]}  Nf6 {[%clk 0:09:14]} 8. Bc1 {[%clk 0:09:13]}  Qa5+ {[%clk 0:08:31]} 9. Bd2 {[%clk 0:09:04]}  Qd8 {[%clk 0:07:05]} 10. Nc3 {[%clk 0:09:00]}  O-O {[%clk 0:07:05]} 11. Bg2 {[%clk 0:09:00]}  Re8 {[%clk 0:07:05]} 12. Nge2 {[%clk 0:09:01]}  d6 {[%clk 0:06:54]} 13. O-O {[%clk 0:09:01]}  a6 {[%clk 0:06:08]} 14. Rc1 {[%clk 0:08:48]}  Bf5 {[%clk 0:06:07]} 15. Qb3 {[%clk 0:08:20]}  b5 {[%clk 0:05:54]} 16. Nd4 {[%clk 0:08:13]}  Bg4 {[%clk 0:05:29]} 17. h3 {[%clk 0:08:03]}  Bh5 {[%clk 0:05:19]} 18. Nce2 {[%clk 0:08:03]}  Nbd7 {[%clk 0:05:12]} 19. Nc6 {[%clk 0:08:01]}  Qb6 {[%clk 0:05:07]} 20. Ned4 {[%clk 0:07:58]}  Ne5 {[%clk 0:04:58]} 21. Nxe5 {[%clk 0:07:50]}  dxe5 {[%clk 0:04:35]} 22. Nc6 {[%clk 0:07:50]}  Be2 {[%clk 0:04:36]} 23. Ba5 {[%clk 0:07:50]}  Bxf1 {[%clk 0:04:00]} 24. Bxb6 {[%clk 0:07:49]}  Bc4 {[%clk 0:04:02]} 25. Bxc5 {[%clk 0:07:30]}  Bxb3 {[%clk 0:04:02]} 26. axb3 {[%clk 0:07:32]}  a5 {[%clk 0:03:51]} 27. d6 {[%clk 0:07:24]}  h5 {[%clk 0:03:38]} 28. b4 {[%clk 0:07:13]}  axb4 {[%clk 0:03:37]} 29. Bxb4 {[%clk 0:07:13]}  Ra2 {[%clk 0:03:17]} 30. Ba3 {[%clk 0:07:11]}  Re6 {[%clk 0:03:08]} 31. Nb4 {[%clk 0:07:05]}  Rxa3 {[%clk 0:03:09]} 32. bxa3 {[%clk 0:07:07]}  Rxd6 {[%clk 0:03:11]} 33. Bf1 {[%clk 0:07:08]} 1-0


[Site "Internet"]

[Event "Chessable Masters - Torneo preliminare"]
[White "Nigmatov, Ortik"]
[Black "Mareco, Sandro"]
[WhiteFideId "14202131"]
[BlackFideId "112275"]
[WhiteElo "2344"]
[BlackElo "2541"]
[Result "0-1"]
[Round "8"]
[TimeControl "600+2"]
[Date "2023.03.13"]
[WhiteClock "0:00:44"]
[BlackClock "0:00:20"]

1. e4 {[%clk 0:10:01]}  e5 {[%clk 0:10:01]} 2. Nf3 {[%clk 0:10:02]}  Nc6 {[%clk 0:10:02]} 3. Bb5 {[%clk 0:10:03]}  a6 {[%clk 0:10:03]} 4. Ba4 {[%clk 0:10:05]}  Nf6 {[%clk 0:09:54]} 5. O-O {[%clk 0:10:05]}  Bc5 {[%clk 0:09:51]} 6. c3 {[%clk 0:10:04]}  O-O {[%clk 0:09:48]} 7. d4 {[%clk 0:10:01]}  Ba7 {[%clk 0:09:48]} 8. Re1 {[%clk 0:09:57]}  d6 {[%clk 0:09:33]} 9. Bxc6 {[%clk 0:09:53]}  bxc6 {[%clk 0:09:34]} 10. Bg5 {[%clk 0:09:50]}  Qe7 {[%clk 0:09:23]} 11. Nbd2 {[%clk 0:09:48]}  Qe6 {[%clk 0:09:09]} 12. Qa4 {[%clk 0:09:28]}  Bd7 {[%clk 0:08:55]} 13. Bxf6 {[%clk 0:09:20]}  Qxf6 {[%clk 0:08:55]} 14. d5 {[%clk 0:09:20]}  Rfb8 {[%clk 0:08:54]} 15. dxc6 {[%clk 0:09:18]}  Be8 {[%clk 0:08:55]} 16. Nc4 {[%clk 0:09:18]}  Rb5 {[%clk 0:08:31]} 17. Qc2 {[%clk 0:09:01]}  Bxc6 {[%clk 0:08:26]} 18. b4 {[%clk 0:09:03]}  Bd7 {[%clk 0:08:19]} 19. Ne3 {[%clk 0:09:04]}  Be6 {[%clk 0:08:03]} 20. a4 {[%clk 0:09:03]}  Rbb8 {[%clk 0:08:03]} 21. Rad1 {[%clk 0:09:02]}  Rb7 {[%clk 0:06:26]} 22. Nd5 {[%clk 0:08:53]}  Qd8 {[%clk 0:06:23]} 23. Qe2 {[%clk 0:08:44]}  Qe8 {[%clk 0:06:20]} 24. Qc2 {[%clk 0:08:39]}  c6 {[%clk 0:05:35]} 25. Ne3 {[%clk 0:08:35]}  Bb8 {[%clk 0:05:36]} 26. Ng5 {[%clk 0:08:10]}  Bd7 {[%clk 0:05:19]} 27. Nc4 {[%clk 0:08:09]}  h6 {[%clk 0:05:00]} 28. Nf3 {[%clk 0:08:00]}  c5 {[%clk 0:05:01]} 29. Nxd6 {[%clk 0:07:43]}  Bxd6 {[%clk 0:05:01]} 30. Rxd6 {[%clk 0:07:45]}  Bxa4 {[%clk 0:05:02]} 31. Qd2 {[%clk 0:07:35]}  cxb4 {[%clk 0:04:37]} 32. cxb4 {[%clk 0:07:37]}  Qb5 {[%clk 0:04:35]} 33. Rd8+ {[%clk 0:05:23]}  Rxd8 {[%clk 0:04:34]} 34. Qxd8+ {[%clk 0:05:25]}  Kh7 {[%clk 0:04:35]} 35. Qd6 {[%clk 0:05:22]}  f6 {[%clk 0:04:25]} 36. Qe6 {[%clk 0:03:53]}  Rb6 {[%clk 0:02:06]} 37. Qf5+ {[%clk 0:03:53]}  Kg8 {[%clk 0:02:06]} 38. Qc8+ {[%clk 0:03:22]}  Kh7 {[%clk 0:01:57]} 39. Qf5+ {[%clk 0:03:20]}  g6 {[%clk 0:01:53]} 40. Qc8 {[%clk 0:03:20]}  Qc6 {[%clk 0:01:46]} 41. Qf8 {[%clk 0:03:05]}  Qe8 {[%clk 0:01:31]} 42. Qc5 {[%clk 0:03:01]}  Rc6 {[%clk 0:01:28]} 43. Qa7+ {[%clk 0:02:58]}  Kg8 {[%clk 0:01:22]} 44. h4 {[%clk 0:02:59]}  h5 {[%clk 0:00:53]} 45. Re2 {[%clk 0:02:54]}  Rd6 {[%clk 0:00:48]} 46. Kh2 {[%clk 0:02:44]}  Qd7 {[%clk 0:00:46]} 47. Qc5 {[%clk 0:02:30]}  Qc6 {[%clk 0:00:41]} 48. Qe3 {[%clk 0:02:30]}  Qc4 {[%clk 0:00:36]} 49. Rb2 {[%clk 0:02:18]}  Rd3 {[%clk 0:00:31]} 50. Qe2 {[%clk 0:02:05]}  Bc6 {[%clk 0:00:25]} 51. Nd2 {[%clk 0:02:01]}  Qd4 {[%clk 0:00:25]} 52. Rc2 {[%clk 0:02:01]}  Bb5 {[%clk 0:00:27]} 53. Nf3 {[%clk 0:01:56]}  Qxb4 {[%clk 0:00:23]} 54. Rc8+ {[%clk 0:01:16]}  Kf7 {[%clk 0:00:22]} 55. Qa2+ {[%clk 0:01:15]}  Qb3 {[%clk 0:00:21]} 56. Qa5 {[%clk 0:01:16]}  Qe6 {[%clk 0:00:21]} 57. Qb4 {[%clk 0:00:44]}  Qxc8 {[%clk 0:00:20]} 0-1


[Site "Internet"]

[Event "Chessable Masters - Torneo preliminare"]
[White "Weetik, Vjacheslav"]
[Black "Agrest, Evgenij"]
[WhiteFideId "4153472"]
[BlackFideId "1705024"]
[WhiteElo "2445"]
[BlackElo "2576"]
[Result "1-0"]
[Round "8"]
[TimeControl "600+2"]
[Date "2023.03.13"]
[WhiteClock "0:02:38"]
[BlackClock "0:03:40"]

1. d4 {[%clk 0:09:59]}  d5 {[%clk 0:09:58]} 2. c4 {[%clk 0:09:54]}  c6 {[%clk 0:09:58]} 3. Nf3 {[%clk 0:09:54]}  Nf6 {[%clk 0:09:58]} 4. Nc3 {[%clk 0:09:55]}  e6 {[%clk 0:09:59]} 5. e3 {[%clk 0:09:55]}  a6 {[%clk 0:09:58]} 6. b3 {[%clk 0:09:44]}  Bb4 {[%clk 0:09:57]} 7. Bd2 {[%clk 0:09:42]}  Bd6 {[%clk 0:09:57]} 8. Bd3 {[%clk 0:09:34]}  c5 {[%clk 0:09:55]} 9. O-O {[%clk 0:09:06]}  O-O {[%clk 0:09:53]} 10. Rc1 {[%clk 0:09:02]}  Nc6 {[%clk 0:09:40]} 11. Bb1 {[%clk 0:08:37]}  cxd4 {[%clk 0:08:21]} 12. exd4 {[%clk 0:08:03]}  Ba3 {[%clk 0:08:08]} 13. c5 {[%clk 0:07:44]}  Bxc1 {[%clk 0:08:00]} 14. Bxc1 {[%clk 0:07:32]}  b6 {[%clk 0:07:22]} 15. Na4 {[%clk 0:07:16]}  bxc5 {[%clk 0:07:18]} 16. Nxc5 {[%clk 0:07:15]}  h6 {[%clk 0:07:11]} 17. Qd3 {[%clk 0:07:13]}  Nb4 {[%clk 0:06:06]} 18. Qd2 {[%clk 0:07:11]}  a5 {[%clk 0:05:59]} 19. Ne5 {[%clk 0:07:03]}  Ne4 {[%clk 0:05:45]} 20. Qe3 {[%clk 0:05:51]}  f5 {[%clk 0:05:39]} 21. f3 {[%clk 0:05:31]}  Nxc5 {[%clk 0:05:35]} 22. dxc5 {[%clk 0:05:31]}  d4 {[%clk 0:05:35]} 23. Qd2 {[%clk 0:04:46]}  Qd5 {[%clk 0:05:26]} 24. Ng6 {[%clk 0:04:41]}  Re8 {[%clk 0:05:24]} 25. Qf4 {[%clk 0:04:18]}  e5 {[%clk 0:04:55]} 26. Qg3 {[%clk 0:03:31]}  Kh7 {[%clk 0:04:33]} 27. Nh4 {[%clk 0:03:14]}  d3 {[%clk 0:04:25]} 28. Qg6+ {[%clk 0:03:10]}  Kh8 {[%clk 0:04:18]} 29. Qxe8+ {[%clk 0:03:12]}  Qg8 {[%clk 0:04:08]} 30. Ng6+ {[%clk 0:02:48]}  Kh7 {[%clk 0:04:07]} 31. Nf8+ {[%clk 0:02:48]}  Kh8 {[%clk 0:04:08]} 32. Ng6+ {[%clk 0:02:50]}  Kh7 {[%clk 0:04:08]} 33. Qxg8+ {[%clk 0:02:52]}  Kxg8 {[%clk 0:04:09]} 34. Nxe5 {[%clk 0:02:54]}  Ba6 {[%clk 0:04:06]} 35. Bd2 {[%clk 0:02:52]}  Re8 {[%clk 0:04:02]} 36. f4 {[%clk 0:02:48]}  Rd8 {[%clk 0:03:51]} 37. Bxb4 {[%clk 0:02:39]}  axb4 {[%clk 0:03:49]} 38. Bxd3 {[%clk 0:02:38]}  Bxd3 {[%clk 0:03:40]} 39. Rd1 {[%clk 0:02:38]} 1-0


[Site "Internet"]

[Event "Chessable Masters - Torneo preliminare"]
[White "Mikaelyan, Arman"]
[Black "Perez Ponsa, Federico"]
[WhiteFideId "13304852"]
[BlackFideId "117927"]
[WhiteElo "2456"]
[BlackElo "2586"]
[Result "0-1"]
[Round "8"]
[TimeControl "600+2"]
[Date "2023.03.13"]
[WhiteClock "0:01:32"]
[BlackClock "0:05:38"]

1. d4 {[%clk 0:10:01]}  Nf6 {[%clk 0:09:12]} 2. c4 {[%clk 0:09:59]}  g6 {[%clk 0:09:11]} 3. Nc3 {[%clk 0:09:54]}  Bg7 {[%clk 0:09:12]} 4. e4 {[%clk 0:09:55]}  d6 {[%clk 0:09:14]} 5. f4 {[%clk 0:09:56]}  c5 {[%clk 0:09:13]} 6. d5 {[%clk 0:09:54]}  O-O {[%clk 0:09:13]} 7. Nf3 {[%clk 0:09:54]}  e6 {[%clk 0:09:15]} 8. Be2 {[%clk 0:09:53]}  exd5 {[%clk 0:09:16]} 9. cxd5 {[%clk 0:09:54]}  Nbd7 {[%clk 0:09:18]} 10. O-O {[%clk 0:09:42]}  Re8 {[%clk 0:09:16]} 11. Qc2 {[%clk 0:09:38]}  a6 {[%clk 0:09:11]} 12. a4 {[%clk 0:09:31]}  Qc7 {[%clk 0:09:01]} 13. Kh1 {[%clk 0:08:40]}  Rb8 {[%clk 0:09:01]} 14. e5 {[%clk 0:08:15]}  dxe5 {[%clk 0:08:59]} 15. fxe5 {[%clk 0:08:17]}  Nxe5 {[%clk 0:08:58]} 16. Nxe5 {[%clk 0:08:08]}  Rxe5 {[%clk 0:08:36]} 17. Bf4 {[%clk 0:08:08]}  Bf5 {[%clk 0:08:35]} 18. Bd3 {[%clk 0:06:57]}  Bxd3 {[%clk 0:08:23]} 19. Qxd3 {[%clk 0:06:56]}  Nh5 {[%clk 0:08:25]} 20. Bxe5 {[%clk 0:06:55]}  Bxe5 {[%clk 0:08:26]} 21. Rad1 {[%clk 0:04:09]}  Rd8 {[%clk 0:08:21]} 22. Ne4 {[%clk 0:03:29]}  Bd4 {[%clk 0:07:42]} 23. b4 {[%clk 0:03:03]}  b6 {[%clk 0:07:44]} 24. bxc5 {[%clk 0:03:03]}  bxc5 {[%clk 0:07:45]} 25. d6 {[%clk 0:02:39]}  Qc6 {[%clk 0:07:46]} 26. Qf3 {[%clk 0:02:31]}  Qd5 {[%clk 0:07:40]} 27. g4 {[%clk 0:02:25]}  f5 {[%clk 0:07:40]} 28. gxf5 {[%clk 0:02:19]}  Re8 {[%clk 0:07:41]} 29. fxg6 {[%clk 0:02:12]}  hxg6 {[%clk 0:07:32]} 30. d7 {[%clk 0:01:46]}  Rd8 {[%clk 0:06:27]} 31. Qg2 {[%clk 0:01:41]}  Kg7 {[%clk 0:06:16]} 32. Ng5 {[%clk 0:01:32]}  Ng3+ {[%clk 0:05:38]} 0-1


[Site "Internet"]

[Event "Chessable Masters - Torneo preliminare"]
[White "Sharapov, Evgeny"]
[Black "Van Foreest, Lucas"]
[WhiteFideId "14103133"]
[BlackFideId "1039792"]
[WhiteElo "2337"]
[BlackElo "2483"]
[Result "0-1"]
[Round "8"]
[TimeControl "600+2"]
[Date "2023.03.13"]
[WhiteClock "0:04:27"]
[BlackClock "0:00:36"]

1. e4 {[%clk 0:10:01]}  e5 {[%clk 0:10:01]} 2. Nf3 {[%clk 0:10:01]}  Nc6 {[%clk 0:10:02]} 3. Nc3 {[%clk 0:10:01]}  Nf6 {[%clk 0:10:03]} 4. Bb5 {[%clk 0:10:02]}  Bd6 {[%clk 0:10:00]} 5. O-O {[%clk 0:10:02]}  O-O {[%clk 0:10:02]} 6. h3 {[%clk 0:10:02]}  Re8 {[%clk 0:10:03]} 7. Re1 {[%clk 0:10:03]}  Bf8 {[%clk 0:10:04]} 8. d4 {[%clk 0:10:00]}  Nxd4 {[%clk 0:10:02]} 9. Nxd4 {[%clk 0:10:01]}  exd4 {[%clk 0:10:04]} 10. Qxd4 {[%clk 0:10:02]}  c6 {[%clk 0:10:05]} 11. Bf1 {[%clk 0:09:49]}  d5 {[%clk 0:09:57]} 12. Bg5 {[%clk 0:09:44]}  dxe4 {[%clk 0:09:35]} 13. Qxd8 {[%clk 0:09:45]}  Rxd8 {[%clk 0:09:37]} 14. Nxe4 {[%clk 0:09:42]}  Be7 {[%clk 0:09:38]} 15. Nxf6+ {[%clk 0:09:39]}  Bxf6 {[%clk 0:09:40]} 16. Bxf6 {[%clk 0:09:36]}  gxf6 {[%clk 0:09:42]} 17. Bd3 {[%clk 0:09:07]}  Be6 {[%clk 0:09:41]} 18. b3 {[%clk 0:09:03]}  a5 {[%clk 0:09:41]} 19. a4 {[%clk 0:09:02]}  Kg7 {[%clk 0:09:32]} 20. Re3 {[%clk 0:09:02]}  f5 {[%clk 0:09:32]} 21. Rae1 {[%clk 0:08:58]}  Rd4 {[%clk 0:09:33]} 22. g3 {[%clk 0:08:03]}  Rad8 {[%clk 0:09:24]} 23. Re5 {[%clk 0:08:04]}  R8d5 {[%clk 0:09:07]} 24. Rxd5 {[%clk 0:08:00]}  Rxd5 {[%clk 0:09:09]} 25. Bc4 {[%clk 0:07:51]}  Rd6 {[%clk 0:09:08]} 26. Bxe6 {[%clk 0:07:41]}  fxe6 {[%clk 0:09:10]} 27. Re2 {[%clk 0:07:36]}  Kf6 {[%clk 0:09:05]} 28. f4 {[%clk 0:07:37]}  b5 {[%clk 0:09:00]} 29. axb5 {[%clk 0:07:09]}  cxb5 {[%clk 0:09:00]} 30. c4 {[%clk 0:07:11]}  Rd3 {[%clk 0:04:57]} 31. Kf2 {[%clk 0:07:11]}  Rxb3 {[%clk 0:04:53]} 32. cxb5 {[%clk 0:07:12]}  a4 {[%clk 0:03:50]} 33. Ra2 {[%clk 0:07:12]}  a3 {[%clk 0:03:50]} 34. Ke1 {[%clk 0:07:12]}  Rxg3 {[%clk 0:03:30]} 35. b6 {[%clk 0:07:13]}  Rxh3 {[%clk 0:03:17]} 36. b7 {[%clk 0:07:07]}  Rb3 {[%clk 0:03:17]} 37. Rxa3 {[%clk 0:07:07]}  Rxb7 {[%clk 0:03:18]} 38. Kf2 {[%clk 0:07:07]}  h5 {[%clk 0:03:00]} 39. Kg3 {[%clk 0:07:08]}  Rg7+ {[%clk 0:03:00]} 40. Kf3 {[%clk 0:07:05]}  h4 {[%clk 0:02:52]} 41. Ra8 {[%clk 0:07:00]}  Rh7 {[%clk 0:02:46]} 42. Kg2 {[%clk 0:06:48]}  h3+ {[%clk 0:02:07]} 43. Kh2 {[%clk 0:06:49]}  Rh4 {[%clk 0:02:08]} 44. Ra4 {[%clk 0:06:46]}  Ke7 {[%clk 0:02:09]} 45. Rd4 {[%clk 0:06:40]}  Ke8 {[%clk 0:02:01]} 46. Rd6 {[%clk 0:06:35]}  Kf7 {[%clk 0:02:02]} 47. Rd7+ {[%clk 0:06:24]}  Kf6 {[%clk 0:02:03]} 48. Rd4 {[%clk 0:06:22]}  Ke7 {[%clk 0:02:04]} 49. Ra4 {[%clk 0:06:15]}  Kd6 {[%clk 0:02:05]} 50. Rb4 {[%clk 0:06:16]}  Kc5 {[%clk 0:02:03]} 51. Ra4 {[%clk 0:06:16]}  Rh6 {[%clk 0:02:05]} 52. Ra1 {[%clk 0:06:10]}  Kd4 {[%clk 0:01:50]} 53. Re1 {[%clk 0:06:08]}  Kd3 {[%clk 0:01:51]} 54. Re5 {[%clk 0:05:55]}  Kd2 {[%clk 0:01:52]} 55. Kg1 {[%clk 0:05:54]}  h2+ {[%clk 0:01:48]} 56. Kh1 {[%clk 0:05:55]}  Kc3 {[%clk 0:00:59]} 57. Re3+ {[%clk 0:05:53]}  Kc4 {[%clk 0:00:56]} 58. Re5 {[%clk 0:05:41]}  Kd4 {[%clk 0:00:46]} 59. Re1 {[%clk 0:05:37]}  Kd3 {[%clk 0:00:45]} 60. Re5 {[%clk 0:05:07]}  Kd2 {[%clk 0:00:46]} 61. Ra5 {[%clk 0:05:04]}  Ke3 {[%clk 0:00:47]} 62. Ra4 {[%clk 0:05:04]}  Kf3 {[%clk 0:00:48]} 63. Rb4 {[%clk 0:05:01]}  Kg3 {[%clk 0:00:44]} 64. Rc4 {[%clk 0:04:55]}  Rg6 {[%clk 0:00:44]} 65. Rb4 {[%clk 0:04:49]}  Rg4 {[%clk 0:00:34]} 66. Rb3+ {[%clk 0:04:27]}  Kxf4 {[%clk 0:00:34]} 67. Kxh2 {[%clk 0:04:28]}  e5 {[%clk 0:00:35]} 68. Rb4+ {[%clk 0:04:27]}  e4 {[%clk 0:00:36]} 0-1


[Site "Internet"]

[Event "Chessable Masters - Torneo preliminare"]
[White "Santos Ruiz, Miguel"]
[Black "Larino Nieto, David"]
[WhiteFideId "22291482"]
[BlackFideId "2256444"]
[WhiteElo "2491"]
[BlackElo "2496"]
[Result "1-0"]
[Round "8"]
[TimeControl "600+2"]
[Date "2023.03.13"]
[WhiteClock "0:05:02"]
[BlackClock "0:00:50"]

1. e4 {[%clk 0:10:01]}  h6 {[%clk 0:09:52]} 2. d4 {[%clk 0:10:00]}  a6 {[%clk 0:09:53]} 3. Be3 {[%clk 0:09:57]}  d6 {[%clk 0:09:53]} 4. Qd2 {[%clk 0:09:57]}  Nd7 {[%clk 0:09:53]} 5. f3 {[%clk 0:09:55]}  e5 {[%clk 0:09:45]} 6. Ne2 {[%clk 0:09:52]}  exd4 {[%clk 0:09:32]} 7. Nxd4 {[%clk 0:09:52]}  g6 {[%clk 0:09:30]} 8. Nc3 {[%clk 0:09:53]}  Bg7 {[%clk 0:09:30]} 9. O-O-O {[%clk 0:09:53]}  Ne7 {[%clk 0:09:28]} 10. g4 {[%clk 0:09:51]}  b5 {[%clk 0:09:27]} 11. Kb1 {[%clk 0:09:36]}  Nb6 {[%clk 0:09:25]} 12. Rg1 {[%clk 0:09:23]}  b4 {[%clk 0:09:20]} 13. Nd5 {[%clk 0:09:24]}  Nexd5 {[%clk 0:08:31]} 14. exd5 {[%clk 0:09:26]}  Bb7 {[%clk 0:08:32]} 15. Nc6 {[%clk 0:09:07]}  Bxc6 {[%clk 0:07:03]} 16. Bxb6 {[%clk 0:08:39]}  cxb6 {[%clk 0:05:56]} 17. dxc6 {[%clk 0:08:29]}  Qf6 {[%clk 0:05:56]} 18. Qe1+ {[%clk 0:08:16]}  Kd8 {[%clk 0:05:23]} 19. Qxb4 {[%clk 0:08:09]}  Kc7 {[%clk 0:05:24]} 20. Bc4 {[%clk 0:07:50]}  Rhe8 {[%clk 0:05:16]} 21. Bd5 {[%clk 0:07:37]}  Re2 {[%clk 0:04:28]} 22. Rge1 {[%clk 0:07:29]}  Rae8 {[%clk 0:04:24]} 23. Rxe2 {[%clk 0:07:17]}  Rxe2 {[%clk 0:04:26]} 24. c3 {[%clk 0:07:14]}  Qe5 {[%clk 0:03:56]} 25. Be4 {[%clk 0:05:56]}  Qxh2 {[%clk 0:02:44]} 26. Qc4 {[%clk 0:05:49]}  Rxb2+ {[%clk 0:02:41]} 27. Ka1 {[%clk 0:05:49]}  b5 {[%clk 0:02:40]} 28. Qxf7+ {[%clk 0:05:38]}  Kb6 {[%clk 0:02:41]} 29. c7 {[%clk 0:05:35]}  Bxc3 {[%clk 0:02:31]} 30. c8=N+ {[%clk 0:05:19]}  Ka5 {[%clk 0:02:29]} 31. Qc7+ {[%clk 0:05:21]}  Kb4 {[%clk 0:02:28]} 32. a3+ {[%clk 0:05:22]}  Kb3 {[%clk 0:01:40]} 33. Bd5+ {[%clk 0:05:22]}  Kc2 {[%clk 0:01:39]} 34. Rc1+ {[%clk 0:05:14]}  Kxc1 {[%clk 0:01:14]} 35. Qxc3+ {[%clk 0:05:16]}  Kd1 {[%clk 0:01:00]} 36. Qxb2 {[%clk 0:05:08]}  Qf4 {[%clk 0:00:59]} 37. Be4 {[%clk 0:05:02]}  h5 {[%clk 0:00:52]} 38. gxh5 {[%clk 0:05:01]}  gxh5 {[%clk 0:00:54]} 39. Ne7 {[%clk 0:05:01]}  h4 {[%clk 0:00:50]} 40. Nd5 {[%clk 0:05:02]} 1-0


[Site "Internet"]

[Event "Chessable Masters - Torneo preliminare"]
[White "Iniyan, P"]
[Black "Sourath, Biswas"]
[WhiteFideId "25002767"]
[BlackFideId "35091484"]
[WhiteElo "2441"]
[BlackElo "2138"]
[Result "1-0"]
[Round "8"]
[TimeControl "600+2"]
[Date "2023.03.13"]
[WhiteClock "0:06:04"]
[BlackClock "0:00:47"]

1. d4 {[%clk 0:10:01]}  Nf6 {[%clk 0:09:57]} 2. c4 {[%clk 0:10:03]}  g6 {[%clk 0:09:57]} 3. Nc3 {[%clk 0:10:04]}  Bg7 {[%clk 0:09:58]} 4. e4 {[%clk 0:10:05]}  O-O {[%clk 0:09:58]} 5. Nf3 {[%clk 0:10:06]}  d6 {[%clk 0:09:59]} 6. Be2 {[%clk 0:10:07]}  Nbd7 {[%clk 0:10:00]} 7. O-O {[%clk 0:10:08]}  e5 {[%clk 0:10:02]} 8. Be3 {[%clk 0:10:09]}  Qe7 {[%clk 0:09:49]} 9. Qc2 {[%clk 0:10:06]}  c6 {[%clk 0:09:51]} 10. d5 {[%clk 0:10:07]}  c5 {[%clk 0:09:51]} 11. a3 {[%clk 0:10:03]}  Kh8 {[%clk 0:09:51]} 12. b4 {[%clk 0:10:02]}  b6 {[%clk 0:09:52]} 13. Ne1 {[%clk 0:09:55]}  Ng8 {[%clk 0:09:52]} 14. Nd3 {[%clk 0:09:52]}  f5 {[%clk 0:09:53]} 15. f3 {[%clk 0:09:29]}  f4 {[%clk 0:09:52]} 16. Bf2 {[%clk 0:09:31]}  g5 {[%clk 0:09:53]} 17. a4 {[%clk 0:09:30]}  a5 {[%clk 0:09:48]} 18. bxc5 {[%clk 0:09:31]}  bxc5 {[%clk 0:09:49]} 19. Nb5 {[%clk 0:09:27]}  Ndf6 {[%clk 0:09:50]} 20. Nxd6 {[%clk 0:09:24]}  Qxd6 {[%clk 0:09:49]} 21. Bxc5 {[%clk 0:09:26]}  Qc7 {[%clk 0:09:49]} 22. Bxf8 {[%clk 0:09:20]}  Bxf8 {[%clk 0:09:51]} 23. c5 {[%clk 0:09:21]}  Ba6 {[%clk 0:09:50]} 24. Rfc1 {[%clk 0:09:18]}  Rc8 {[%clk 0:09:51]} 25. Nxf4 {[%clk 0:08:57]}  Bxe2 {[%clk 0:09:30]} 26. Nxe2 {[%clk 0:08:59]}  Qxc5+ {[%clk 0:09:09]} 27. Qxc5 {[%clk 0:08:59]}  Rxc5 {[%clk 0:09:11]} 28. Rab1 {[%clk 0:08:48]}  Nd7 {[%clk 0:08:58]} 29. Rb5 {[%clk 0:08:22]}  Rxb5 {[%clk 0:08:43]} 30. axb5 {[%clk 0:08:24]}  Bc5+ {[%clk 0:08:44]} 31. Kf1 {[%clk 0:08:24]}  a4 {[%clk 0:08:37]} 32. Nc3 {[%clk 0:08:17]}  a3 {[%clk 0:08:37]} 33. Ra1 {[%clk 0:08:00]}  Nb6 {[%clk 0:08:26]} 34. Nb1 {[%clk 0:08:01]}  Nc4 {[%clk 0:08:25]} 35. Ke2 {[%clk 0:07:39]}  Nd6 {[%clk 0:05:17]} 36. Nxa3 {[%clk 0:06:50]}  Bxa3 {[%clk 0:03:58]} 37. Rxa3 {[%clk 0:06:51]}  Nxb5 {[%clk 0:04:00]} 38. Ra5 {[%clk 0:06:52]}  Nd6 {[%clk 0:02:11]} 39. Ra7 {[%clk 0:06:40]}  Nf6 {[%clk 0:02:04]} 40. Re7 {[%clk 0:06:37]}  Kg8 {[%clk 0:01:20]} 41. Rxe5 {[%clk 0:06:36]}  Nf7 {[%clk 0:01:22]} 42. Re7 {[%clk 0:06:29]}  Kf8 {[%clk 0:01:22]} 43. Ra7 {[%clk 0:06:28]}  Ne5 {[%clk 0:01:18]} 44. Ke3 {[%clk 0:06:28]}  Nfd7 {[%clk 0:01:20]} 45. Kd4 {[%clk 0:06:27]}  Ke7 {[%clk 0:01:20]} 46. Ra6 {[%clk 0:06:25]}  Ng6 {[%clk 0:01:11]} 47. e5 {[%clk 0:06:25]}  Nf4 {[%clk 0:01:04]} 48. Ra7 {[%clk 0:06:08]}  Ke8 {[%clk 0:01:01]} 49. e6 {[%clk 0:06:05]}  Nf6 {[%clk 0:01:01]} 50. d6 {[%clk 0:06:04]}  Nxe6+ {[%clk 0:00:47]} 51. Ke5 {[%clk 0:06:04]} 1-0


[Site "Internet"]

[Event "Chessable Masters - Torneo preliminare"]
[White "Drygalov, Sergey"]
[Black "Matamoros Franco, Carlos S."]
[WhiteFideId "24171743"]
[BlackFideId "3600017"]
[WhiteElo "2461"]
[BlackElo "2407"]
[Result "1-0"]
[Round "8"]
[TimeControl "600+2"]
[Date "2023.03.13"]
[WhiteClock "0:02:39"]
[BlackClock "0:00:10"]

1. d4 {[%clk 0:10:01]}  Nf6 {[%clk 0:10:00]} 2. c4 {[%clk 0:10:02]}  c5 {[%clk 0:10:01]} 3. d5 {[%clk 0:10:03]}  g6 {[%clk 0:10:02]} 4. Nc3 {[%clk 0:10:04]}  Bg7 {[%clk 0:10:04]} 5. e4 {[%clk 0:10:05]}  d6 {[%clk 0:10:06]} 6. h3 {[%clk 0:10:06]}  O-O {[%clk 0:10:07]} 7. Nf3 {[%clk 0:10:07]}  e6 {[%clk 0:10:09]} 8. Bd3 {[%clk 0:10:08]}  exd5 {[%clk 0:10:10]} 9. cxd5 {[%clk 0:10:10]}  b5 {[%clk 0:10:11]} 10. Nxb5 {[%clk 0:10:03]}  Re8 {[%clk 0:10:03]} 11. O-O {[%clk 0:10:03]}  Nxe4 {[%clk 0:10:04]} 12. Bxe4 {[%clk 0:09:56]}  Rxe4 {[%clk 0:10:03]} 13. Bg5 {[%clk 0:09:57]}  Qd7 {[%clk 0:09:57]} 14. Nc3 {[%clk 0:09:57]}  Re8 {[%clk 0:09:52]} 15. Re1 {[%clk 0:09:58]}  Rxe1+ {[%clk 0:09:39]} 16. Qxe1 {[%clk 0:10:00]}  Na6 {[%clk 0:09:19]} 17. Qd2 {[%clk 0:09:18]}  Bb7 {[%clk 0:09:08]} 18. Qf4 {[%clk 0:08:33]}  Nc7 {[%clk 0:09:01]} 19. Rd1 {[%clk 0:08:26]}  Re8 {[%clk 0:08:49]} 20. Bf6 {[%clk 0:08:15]}  Bxf6 {[%clk 0:08:27]} 21. Qxf6 {[%clk 0:08:17]}  Qe7 {[%clk 0:08:28]} 22. Qf4 {[%clk 0:08:18]}  Kg7 {[%clk 0:08:27]} 23. Qa4 {[%clk 0:07:35]}  a6 {[%clk 0:08:17]} 24. b4 {[%clk 0:07:35]}  Qf6 {[%clk 0:08:13]} 25. Qb3 {[%clk 0:07:19]}  Ba8 {[%clk 0:07:35]} 26. bxc5 {[%clk 0:07:15]}  dxc5 {[%clk 0:07:36]} 27. Qc4 {[%clk 0:07:16]}  Qb6 {[%clk 0:07:15]} 28. Qf4 {[%clk 0:06:08]}  Qb4 {[%clk 0:06:41]} 29. Qxc7 {[%clk 0:06:08]}  Qxc3 {[%clk 0:06:41]} 30. d6 {[%clk 0:05:55]}  Bxf3 {[%clk 0:06:41]} 31. Rf1 {[%clk 0:03:57]}  Be2 {[%clk 0:00:48]} 32. d7 {[%clk 0:03:52]}  Rf8 {[%clk 0:00:48]} 33. Rb1 {[%clk 0:03:05]}  Qd4 {[%clk 0:00:26]} 34. a4 {[%clk 0:02:57]}  c4 {[%clk 0:00:22]} 35. Rb6 {[%clk 0:02:48]}  h5 {[%clk 0:00:10]} 36. Rd6 {[%clk 0:02:45]}  Qa1+ {[%clk 0:00:10]} 37. Kh2 {[%clk 0:02:46]}  Qe5+ {[%clk 0:00:11]} 38. g3 {[%clk 0:02:45]}  Qf5 {[%clk 0:00:10]} 39. Qb6 {[%clk 0:02:40]}  Bd3 {[%clk 0:00:08]} 40. Qd4+ {[%clk 0:02:35]}  Kh7 {[%clk 0:00:09]} 41. d8=Q {[%clk 0:02:36]}  Rxd8 {[%clk 0:00:09]} 42. Rxd8 {[%clk 0:02:38]}  f6 {[%clk 0:00:09]} 43. Qa7+ {[%clk 0:02:37]}  Kh6 {[%clk 0:00:09]} 44. Rh8+ {[%clk 0:02:38]}  Kg5 {[%clk 0:00:10]} 45. Qe3+ {[%clk 0:02:39]} 1-0


[Site "Internet"]